bitfinex/quotes_SOLUSD_20241024
["timestamp","ask_amount","ask_price","bid_price","bid_amount"]
[1729745266314,0.1,173.99,173.92,20.0]
[1729745266539,0.1,173.99,173.98,18.48068178]
[1729745267730,0.1,174.0,173.98,18.48068178]
[1729745267943,0.1,173.99,173.98,18.48068178]
[1729745268319,0.1,174.0,173.98,18.48068178]
[1729745268622,0.1,173.99,173.92,0.25098]
[1729745268823,0.1,173.99,173.98,9.24034089]
[1729745269419,0.1,173.98,173.91,20.0]
[1729745269822,0.1,173.98,173.96,18.48068178]
[1729745271629,0.1,173.97,173.95,18.48068178]
[1729745271819,0.2,173.96,173.86,0.25098]
[1729745272025,0.2,173.96,173.93,18.48068178]
[1729745272324,0.2,173.96,173.94,18.48068178]
[1729745273144,0.2,173.96,173.93,18.48068178]
[1729745273332,0.1,173.95,173.93,18.48068178]
[1729745274044,0.1,173.93,173.9,18.48068178]
[1729745274227,0.2,173.93,173.9,18.48068178]
[1729745274423,0.2,173.92,173.88,18.48068178]
[1729745274628,18.48068178,173.93,173.88,18.48068178]
[1729745274629,0.2,173.91,173.88,18.48068178]
[1729745274925,0.2,173.91,173.87,18.48068178]
[1729745275129,0.1,173.91,173.89,18.48068178]
[1729745275823,0.2,173.91,173.89,18.48068178]
[1729745276237,0.1,173.91,173.89,18.48068178]
[1729745276422,0.2,173.91,173.89,18.48068178]
[1729745277845,0.1,173.9,173.88,18.48068178]
[1729745278042,0.1,173.88,173.85,18.48068178]
[1729745279833,0.2,173.87,173.83,18.48068178]
[1729745280033,0.1,173.86,173.83,18.48068178]
[1729745280234,0.2,173.86,173.83,18.48068178]
[1729745280437,0.1,173.86,173.84,18.48068178]
[1729745280953,0.2,173.86,173.84,18.48068178]
[1729745282149,0.2,173.87,173.84,18.48068178]
[1729745282350,0.1,173.87,173.84,18.48068178]
[1729745282854,0.2,173.87,173.85,18.48068178]
[1729745283331,0.2,173.86,173.84,18.48068178]
[1729745283530,0.2,173.86,173.77,9.09272851]
[1729745283531,0.2,173.86,173.83,18.48068178]
[1729745284529,0.2,173.86,173.77,9.09272851]
[1729745284530,0.2,173.86,173.82,18.48068178]
[1729745285145,0.2,173.86,173.84,18.48068178]
[1729745285860,0.1,173.87,173.85,18.48068178]
[1729745286043,6.5748,173.88,173.86,18.48068178]
[1729745286243,6.5748,173.88,173.87,18.48068178]
[1729745286439,0.1,173.9,173.87,18.48068178]
[1729745286655,0.1,173.92,173.89,18.48068178]
[1729745286847,0.1,173.92,173.9,18.48068178]
[1729745287660,23.0589,173.93,173.88,18.48068178]
[1729745287661,0.2,173.91,173.88,18.48068178]
[1729745288373,0.2,173.91,173.88,28.8820699]
[1729745288660,0.2,173.86,173.83,28.8820699]
[1729745289043,0.2,173.88,173.85,28.8820699]
[1729745289354,0.1,173.87,173.86,28.8820699]
[1729745289556,0.1,173.87,173.85,28.8820699]
[1729745291466,0.1,173.88,173.85,28.8820699]
[1729745291641,0.2,173.89,173.87,28.8820699]
[1729745292147,0.1,173.89,173.87,28.8820699]
[1729745293860,0.1,173.92,173.88,28.8820699]
[1729745294063,0.1,173.92,173.9,28.8820699]
[1729745294266,0.1,173.91,173.9,28.8820699]
[1729745294458,0.2,173.91,173.88,28.8820699]
[1729745294648,0.2,173.89,173.85,28.8820699]
[1729745294848,0.2,173.88,173.85,28.8820699]
[1729745295155,0.2,173.89,173.86,28.8820699]
[1729745295356,0.2,173.88,173.86,28.8820699]
[1729745295754,0.2,173.89,173.86,28.8820699]
[1729745297061,0.1,173.88,173.86,28.8820699]
[1729745297368,0.2,173.88,173.85,28.8820699]
[1729745298473,0.1,173.87,173.84,28.8820699]
[1729745299072,0.1,173.87,173.85,28.8820699]
[1729745299249,0.1,173.87,173.84,28.8820699]
[1729745299967,0.1,173.87,173.83,28.8820699]
[1729745300172,0.1,173.87,173.77,6.00400603]
[1729745300173,0.1,173.87,173.84,20.0]
[1729745300472,0.1,173.86,173.83,28.8820699]
[1729745301275,0.1,173.87,173.83,28.8820699]
[1729745301473,0.1,173.86,173.83,28.8820699]
[1729745301664,0.1,173.89,173.85,28.8820699]
[1729745301866,0.1,173.89,173.87,28.8820699]
[1729745302372,0.1,173.88,173.86,28.8820699]
[1729745303875,29.0820699,173.88,173.83,28.8820699]
[1729745304180,0.1,173.86,173.83,28.8820699]
[1729745305172,0.1,173.85,173.77,6.003943]
[1729745305365,0.1,173.83,173.8,28.8820699]
[1729745305565,0.1,173.84,173.82,28.8820699]
[1729745307081,0.1,173.85,173.83,28.8820699]
[1729745307256,0.1,173.87,173.84,28.8820699]
[1729745307571,0.1,173.88,173.86,28.8820699]
[1729745307781,0.1,173.89,173.87,28.8820699]
[1729745307960,0.1,173.89,173.88,28.8820699]
[1729745312984,0.2,173.9,173.88,28.8820699]
[1729745313185,0.1,173.89,173.88,28.8820699]
[1729745313579,0.2,173.9,173.88,28.8820699]
[1729745313778,0.1,173.89,173.88,28.8820699]
[1729745314185,0.1,173.95,173.89,20.0]
[1729745314365,0.1,173.95,173.93,28.8820699]
[1729745314868,0.2,173.96,173.93,28.8820699]
[1729745315181,0.2,173.95,173.93,28.8820699]
[1729745315381,0.1,173.95,173.93,28.8820699]
[1729745315578,0.2,173.95,173.93,28.8820699]
[1729745315780,0.1,173.94,173.92,28.8820699]
[1729745316084,0.1,173.93,173.92,28.8820699]
[1729745317068,0.1,173.94,173.92,28.8820699]
[1729745317272,0.1,173.94,173.93,28.8820699]
[1729745318585,0.1,173.93,173.92,28.8820699]
[1729745321563,0.2,173.93,173.91,28.8820699]
[1729745321768,0.1,173.92,173.91,28.8820699]
[1729745322390,0.1,173.92,173.91,18.47751416]
[1729745323091,0.2,173.92,173.91,18.47751416]
[1729745323283,0.2,173.92,173.9,18.47751416]
[1729745324292,0.1,173.91,173.89,18.47751416]
[1729745324474,0.2,173.92,173.89,18.47751416]
[1729745324676,0.2,173.92,173.9,18.47751416]
[1729745326094,0.1,173.91,173.9,18.47751416]
[1729745327583,0.2,173.92,173.9,18.47751416]
[1729745328892,0.1,173.91,173.9,18.47751416]
[1729745330595,0.1,173.89,173.84,20.0]
[1729745330775,0.2,173.89,173.86,18.47751416]
[1729745331103,0.2,173.88,173.85,18.47751416]
[1729745332501,0.1,173.88,173.86,18.47751416]
[1729745332695,0.1,173.88,173.87,18.47751416]
[1729745335405,0.2,173.88,173.87,18.47751416]
[1729745336800,0.1,173.88,173.87,18.47751416]
[1729745337005,0.2,173.88,173.87,18.47751416]
[1729745337207,0.1,173.89,173.87,18.47751416]
[1729745337384,0.1,173.89,173.88,18.47751416]
[1729745337801,0.1,173.89,173.87,18.47751416]
[1729745338005,0.1,173.88,173.87,18.47751416]
[1729745338503,0.1,173.89,173.87,18.47751416]
[1729745338708,0.1,173.88,173.87,18.47751416]
[1729745339191,0.1,173.89,173.87,18.47751416]
[1729745339394,0.1,173.88,173.87,18.47751416]
[1729745340307,0.1,173.89,173.87,18.47751416]
[1729745340907,0.1,173.9,173.88,18.47751416]
[1729745341304,0.1,173.9,173.89,18.47751416]
[1729745341907,0.2,173.91,173.89,18.47751416]
[1729745344009,0.2,173.91,173.82,0.12549]
[1729745344307,0.1,173.9,173.88,18.47751416]
[1729745344506,0.2,173.91,173.88,18.47751416]
[1729745345714,0.1,173.89,173.88,18.47751416]
[1729745346217,0.2,173.91,173.88,18.47751416]
[1729745346510,0.1,173.89,173.88,18.47751416]
[1729745346900,0.2,173.91,173.88,18.47751416]
[1729745347418,0.1,173.89,173.88,18.47751416]
[1729745347910,0.1,173.89,173.87,18.47751416]
[1729745349791,0.1,173.9,173.88,18.47751416]
[1729745350110,0.1,173.89,173.88,18.47751416]
[1729745350690,0.1,173.89,173.82,0.25098]
[1729745350897,0.1,173.89,173.88,18.47751416]
[1729745353213,0.2,173.89,173.87,18.47751416]
[1729745353592,0.1,173.88,173.87,20.0]
[1729745353803,0.2,173.88,173.81,20.12549]
[1729745354027,0.1,173.87,173.86,20.0]
[1729745355198,0.1,173.87,173.86,38.47751416]
[1729745357013,0.1,173.87,173.86,20.0]
[1729745358401,0.1,173.85,173.8,5.99430167]
[1729745358594,0.2,173.84,173.81,18.47751416]
[1729745359005,0.2,173.84,173.75,5.99828761]
[1729745359204,0.2,173.84,173.8,18.47751416]
[1729745359518,0.2,173.82,173.8,18.47751416]
[1729745360513,0.2,173.82,173.79,18.47751416]
[1729745360705,0.1,173.8,173.76,20.0]
[1729745361011,0.1,173.8,173.79,20.0]
[1729745361419,0.1,173.8,173.78,18.47751416]
[1729745361817,0.2,173.8,173.77,18.47751416]
[1729745362119,0.2,173.8,173.76,18.47751416]
[1729745362120,0.1,173.79,173.76,18.47751416]
[1729745362297,0.1,173.8,173.78,18.47751416]
[1729745362614,0.1,173.8,173.79,18.47751416]
[1729745364230,0.1,173.8,173.78,18.47751416]
[1729745364516,0.2,173.8,173.78,18.47751416]
[1729745364716,0.1,173.79,173.78,18.47751416]
[1729745365203,0.1,173.79,173.77,18.47751416]
[1729745365714,0.2,173.79,173.73,20.0]
[1729745365915,0.1,173.78,173.76,18.47751416]
[1729745366815,0.1,173.78,173.77,18.47751416]
[1729745367020,0.1,173.79,173.77,18.47751416]
[1729745368626,0.2,173.79,173.77,18.47751416]
[1729745368922,0.1,173.79,173.77,18.47751416]
[1729745369801,0.1,173.78,173.77,18.47751416]
[1729745370505,0.2,173.78,173.77,18.47751416]
[1729745370700,0.2,173.78,173.76,18.47751416]
[1729745370915,0.1,173.77,173.76,20.0]
[1729745371610,0.1,173.77,173.75,20.0]
[1729745371812,0.1,173.75,173.7,20.0]
[1729745372001,0.2,173.75,173.73,18.47751416]
[1729745372918,0.1,173.75,173.73,18.47751416]
[1729745373306,0.2,173.75,173.74,18.47751416]
[1729745374215,0.2,173.75,173.73,18.47751416]
[1729745374430,0.1,173.74,173.72,18.47751416]
[1729745375919,0.2,173.75,173.73,18.47751416]
[1729745376123,0.2,173.75,173.74,18.47751416]
[1729745376532,0.2,173.75,173.73,18.47751416]
[1729745379204,22.0014,173.8,173.67,20.25098]
[1729745379205,0.1,173.77,173.74,18.47751416]
[1729745379401,0.1,173.76,173.75,18.47751416]
[1729745380116,0.1,173.76,173.74,18.47751416]
[1729745381727,0.1,173.77,173.75,18.47751416]
[1729745382025,0.2,173.77,173.75,18.47751416]
[1729745382629,0.1,173.77,173.75,18.47751416]
[1729745382917,0.1,173.77,173.76,18.47751416]
[1729745383126,0.1,173.78,173.76,18.47751416]
[1729745383322,0.1,173.78,173.77,18.47751416]
[1729745384923,0.2,173.83,173.78,20.0]
[1729745385114,0.2,173.83,173.82,18.47751416]
[1729745385318,0.2,173.83,173.81,18.47751416]
[1729745385521,0.1,173.82,173.81,18.47751416]
[1729745385718,0.2,173.81,173.79,18.47751416]
[1729745385911,0.1,173.79,173.77,18.47751416]
[1729745386112,0.2,173.79,173.77,18.47751416]
[1729745386310,0.1,173.78,173.76,18.47751416]
[1729745386527,0.1,173.77,173.75,18.47751416]
[1729745388129,0.1,173.78,173.76,18.47751416]
[1729745388307,0.1,173.77,173.72,0.25098]
[1729745388512,0.1,173.77,173.76,18.47751416]
[1729745388713,0.1,173.78,173.76,18.47751416]
[1729745388909,0.1,173.79,173.77,18.47751416]
[1729745389113,0.1,173.79,173.78,18.47751416]
[1729745390623,0.2,173.79,173.78,18.47751416]
[1729745391130,16.5027,173.8,173.78,18.47751416]
[1729745391334,0.1,173.8,173.79,18.47751416]
[1729745392334,0.2,173.8,173.79,18.47751416]
[1729745392834,0.2,173.8,173.78,18.47751416]
[1729745393330,0.2,173.79,173.78,18.47751416]
[1729745393520,0.2,173.79,173.77,18.47751416]
[1729745394534,0.1,173.79,173.77,18.47751416]
[1729745394928,0.1,173.79,173.78,18.47751416]
[1729745395619,0.2,173.79,173.78,18.47751416]
[1729745397230,0.2,173.79,173.72,0.25098]
[1729745397231,0.2,173.79,173.77,18.47751416]
[1729745401619,0.2,173.79,173.78,18.47751416]
[1729745402928,0.1,173.8,173.78,18.47751416]
[1729745403244,0.1,173.82,173.8,20.0]
[1729745403425,0.1,173.81,173.8,20.0]
[1729745403821,0.1,173.81,173.74,20.25098]
[1729745404344,0.1,173.81,173.8,38.47751416]
[1729745406042,0.2,173.83,173.8,38.47751416]
[1729745406345,0.2,173.83,173.82,18.47751416]
[1729745406542,0.2,173.83,173.82,38.47751416]
[1729745406745,0.1,173.84,173.82,38.47751416]
[1729745407043,0.1,173.84,173.83,18.47751416]
[1729745408225,0.1,173.85,173.83,18.47751416]
[1729745408426,0.1,173.85,173.84,18.47751416]
[1729745409344,0.1,173.86,173.84,18.47751416]
[1729745409535,0.1,173.86,173.85,18.47751416]
[1729745411440,6.8122,173.87,173.85,18.47751416]
[1729745411644,6.7122,173.87,173.86,18.47751416]
[1729745413426,0.1,173.85,173.81,20.0]
[1729745413632,0.2,173.85,173.83,18.47751416]
[1729745413928,0.1,173.83,173.82,38.47751416]
[1729745414142,0.1,173.83,173.82,18.47751416]
[1729745414340,0.1,173.81,173.71,10.54693098]
[1729745414547,0.1,173.81,173.8,18.47751416]
[1729745415854,0.1,173.81,173.8,20.0]
[1729745416143,0.1,173.81,173.8,38.47751416]
[1729745417343,0.1,173.82,173.81,20.0]
[1729745417645,0.1,173.82,173.81,38.47751416]
[1729745418224,0.1,173.82,173.81,18.47751416]
[1729745418429,0.1,173.81,173.8,38.47751416]
[1729745419247,0.1,173.79,173.76,18.47751416]
[1729745419427,0.1,173.78,173.77,18.47751416]
[1729745420251,0.2,173.78,173.71,9.04304278]
[1729745420432,0.2,173.77,173.75,18.47751416]
[1729745420946,0.2,173.74,173.72,18.47751416]
[1729745421157,0.1,173.74,173.73,18.47751416]
[1729745421646,0.2,173.74,173.73,18.47751416]
[1729745421950,0.2,173.74,173.7,18.47751416]
[1729745421951,0.1,173.71,173.7,18.47751416]
[1729745422125,0.2,173.71,173.7,18.47751416]
[1729745422744,0.2,173.71,173.64,6.00801717]
[1729745422952,0.2,173.71,173.7,18.47751416]
[1729745423835,0.2,173.71,173.7,38.47751416]
[1729745428333,0.2,173.69,173.64,6.00801717]
[1729745428546,0.2,173.69,173.66,18.47751416]
[1729745428749,0.2,173.69,173.67,18.47751416]
[1729745429045,0.1,173.68,173.67,18.47751416]
[1729745429754,0.2,173.68,173.67,18.47751416]
[1729745430132,0.1,173.65,173.59,6.00624012]
[1729745430452,0.1,173.64,173.63,18.47751416]
[1729745430654,0.2,173.64,173.63,18.47751416]
[1729745431033,0.2,173.64,173.56,6.00771856]
[1729745431254,0.2,173.64,173.63,18.47751416]
[1729745432828,0.1,173.62,173.57,20.0]
[1729745433047,0.1,173.62,173.55,3.05104582]
[1729745433048,0.1,173.62,173.61,38.47751416]
[1729745433248,0.1,173.64,173.62,20.0]
[1729745433456,0.1,173.65,173.64,20.0]
[1729745433758,0.2,173.65,173.64,38.47751416]
[1729745434134,0.1,173.64,173.55,3.05104582]
[1729745434359,0.2,173.63,173.62,20.0]
[1729745434656,0.1,173.62,173.56,0.25098]
[1729745434831,0.2,173.63,173.61,9.23875708]
[1729745435035,0.1,173.64,173.62,18.47751416]
[1729745435231,0.1,173.66,173.57,0.25098]
[1729745435530,0.1,173.67,173.59,0.25098]
[1729745436341,0.1,173.67,173.66,18.47751416]
[1729745437057,0.2,173.67,173.66,18.47751416]
[1729745437434,0.1,173.66,173.65,38.47751416]
[1729745437759,0.2,173.66,173.65,38.47751416]
[1729745439061,0.2,173.67,173.65,38.47751416]
[1729745439361,0.1,173.67,173.66,18.47751416]
[1729745440354,0.2,173.67,173.66,18.47751416]
[1729745440551,0.1,173.67,173.66,18.47751416]
[1729745441440,0.2,173.67,173.66,18.47751416]
[1729745442642,0.1,173.67,173.66,18.47751416]
[1729745443047,0.2,173.67,173.66,18.47751416]
[1729745446169,0.1,173.66,173.61,20.0]
[1729745446456,0.1,173.66,173.65,38.47751416]
[1729745446967,0.2,173.66,173.65,38.47751416]
[1729745447966,0.1,173.66,173.65,38.47751416]
[1729745448270,0.2,173.66,173.65,38.47751416]
[1729745448766,0.1,173.66,173.65,38.47751416]
[1729745448965,0.2,173.67,173.65,38.47751416]
[1729745449163,0.2,173.67,173.66,18.47751416]
[1729745454146,0.2,173.67,173.65,20.0]
[1729745454147,0.2,173.67,173.65,38.47751416]
[1729745454349,0.1,173.66,173.65,38.47751416]
[1729745454567,0.2,173.66,173.65,38.47751416]
[1729745454954,0.2,173.66,173.65,20.0]
[1729745455174,0.2,173.66,173.64,20.0]
[1729745456050,0.2,173.65,173.63,18.47751416]
[1729745456245,0.1,173.64,173.63,38.47751416]
[1729745456450,0.1,173.64,173.63,18.47751416]
[1729745456880,0.2,173.65,173.63,18.47751416]
[1729745457054,0.2,173.65,173.64,18.47751416]
[1729745457688,0.1,173.65,173.64,18.47751416]
[1729745457862,0.1,173.65,173.64,38.47751416]
[1729745458061,0.2,173.65,173.64,38.47751416]
[1729745458461,0.2,173.65,173.64,18.47751416]
[1729745466679,0.1,173.65,173.64,18.47751416]
[1729745467288,0.2,173.68,173.65,20.0]
[1729745467479,0.1,173.68,173.67,18.47751416]
[1729745467790,0.1,173.68,173.67,38.47751416]
[1729745467985,0.2,173.68,173.67,38.47751416]
[1729745468494,0.2,173.68,173.67,20.0]
[1729745468673,0.1,173.68,173.67,20.0]
[1729745468993,0.2,173.68,173.67,20.0]
[1729745469670,0.1,173.68,173.67,20.0]
[1729745469880,0.2,173.68,173.67,20.0]
[1729745470081,0.2,173.68,173.67,38.47751416]
[1729745473296,0.1,173.68,173.67,38.47751416]
[1729745473500,0.2,173.68,173.67,38.47751416]
[1729745473990,0.2,173.69,173.67,38.47751416]
[1729745474296,0.2,173.68,173.61,20.25098]
[1729745474489,0.2,173.68,173.67,38.47751416]
[1729745475191,0.2,173.68,173.67,20.0]
[1729745475589,0.2,173.68,173.66,18.47751416]
[1729745475590,0.2,173.68,173.66,20.0]
[1729745475978,0.1,173.67,173.61,20.0]
[1729745476180,0.1,173.68,173.67,20.0]
[1729745476375,0.2,173.68,173.67,20.0]
[1729745477075,0.2,173.68,173.67,38.47751416]
[1729745479301,0.2,173.69,173.67,38.47751416]
[1729745479501,0.1,173.7,173.68,38.47751416]
[1729745479794,0.2,173.7,173.69,38.47751416]
[1729745482506,0.1,173.7,173.69,38.47751416]
[1729745482679,0.2,173.7,173.69,38.47751416]
[1729745483104,0.1,173.7,173.69,38.47751416]
[1729745485208,0.1,173.72,173.69,38.47751416]
[1729745485385,0.1,173.72,173.71,18.47751416]
[1729745485591,0.1,173.72,173.71,38.47751416]
[1729745486101,0.2,173.72,173.71,38.47751416]
[1729745487011,0.2,173.73,173.72,20.0]
[1729745487303,0.1,173.75,173.72,38.47751416]
[1729745487501,21.559,173.76,173.74,18.47751416]
[1729745487698,21.559,173.76,173.72,20.0]
[1729745487699,21.659,173.76,173.75,18.47751416]
[1729745488097,0.2,173.77,173.75,18.47751416]
[1729745488294,0.2,173.77,173.76,18.47751416]
[1729745489589,0.1,173.77,173.76,18.47751416]
[1729745489997,0.2,173.77,173.76,18.47751416]
[1729745490908,0.2,173.78,173.76,18.47751416]
[1729745491112,0.2,173.78,173.77,18.47751416]
[1729745491506,0.1,173.78,173.77,18.47751416]
[1729745492107,0.2,173.78,173.77,18.47751416]
[1729745497115,0.2,173.76,173.74,18.47751416]
[1729745497418,0.2,173.75,173.74,38.47751416]
[1729745502412,0.2,173.78,173.74,38.47751416]
[1729745502610,0.2,173.78,173.7,73.91005664]
[1729745502611,0.1,173.78,173.77,18.47751416]
[1729745503895,0.1,173.79,173.77,18.47751416]
[1729745504095,0.2,173.79,173.78,18.47751416]
[1729745504718,0.1,173.83,173.79,20.0]
[1729745504922,0.2,173.84,173.82,18.47751416]
[1729745505216,0.1,173.86,173.83,18.47751416]
[1729745505516,0.1,173.87,173.85,18.47751416]
[1729745505696,0.2,173.87,173.86,18.47751416]
[1729745505921,0.1,173.87,173.86,18.47751416]
[1729745506097,0.2,173.87,173.86,38.47751416]
[1729745506294,0.2,173.87,173.86,20.0]
[1729745506495,0.2,173.87,173.86,38.47751416]
[1729745506990,0.2,173.87,173.8,73.91005664]
[1729745507195,0.2,173.87,173.86,18.47751416]
[1729745509716,0.1,173.84,173.78,4.5424]
[1729745510033,0.2,173.84,173.83,38.47751416]
[1729745511504,0.2,173.84,173.83,20.0]
[1729745511693,0.1,173.81,173.74,0.25098]
[1729745511899,0.1,173.81,173.8,38.47751416]
[1729745513020,0.2,173.82,173.81,20.0]
[1729745514306,0.1,173.81,173.8,18.47751416]
[1729745515207,0.2,173.81,173.8,18.47751416]
[1729745515510,0.1,173.82,173.81,20.0]
[1729745515701,0.1,173.83,173.81,38.47751416]
[1729745516011,0.1,173.83,173.82,18.47751416]
[1729745516819,0.1,173.83,173.82,38.47751416]
[1729745517022,0.2,173.83,173.82,38.47751416]
[1729745518931,0.1,173.83,173.82,38.47751416]
[1729745520018,0.1,173.84,173.82,38.47751416]
[1729745520321,0.1,173.84,173.83,38.47751416]
[1729745520830,0.2,173.84,173.83,38.47751416]
[1729745521634,0.1,173.84,173.83,38.47751416]
[1729745522125,0.2,173.84,173.83,38.47751416]
[1729745524728,0.2,173.88,173.83,38.47751416]
[1729745524913,0.2,173.89,173.87,18.47751416]
[1729745525112,0.2,173.89,173.88,18.47751416]
[1729745526539,0.1,173.89,173.88,18.47751416]
[1729745526716,0.2,173.9,173.88,18.47751416]
[1729745527040,0.2,173.9,173.89,38.47751416]
[1729745532843,0.1,173.88,173.8,76.98393468]
[1729745533140,0.2,173.88,173.87,18.47751416]
[1729745533333,0.2,173.88,173.87,38.47751416]
[1729745533533,0.1,173.88,173.87,38.47751416]
[1729745535025,0.2,173.88,173.87,38.47751416]
[1729745535221,0.2,173.88,173.81,20.12549]
[1729745535426,0.1,173.87,173.86,38.47751416]
[1729745535737,0.2,173.87,173.86,38.47751416]
[1729745536345,0.1,173.87,173.86,38.47751416]
[1729745536543,0.1,173.88,173.86,38.47751416]
[1729745536851,0.1,173.88,173.87,38.47751416]
[1729745537524,0.2,173.88,173.87,38.47751416]
[1729745537724,0.1,173.88,173.87,38.47751416]
[1729745538542,0.1,173.89,173.87,38.47751416]
[1729745538729,0.1,173.89,173.88,38.47751416]
[1729745538920,0.2,173.89,173.88,38.47751416]
[1729745540541,0.1,173.89,173.88,38.47751416]
[1729745544350,0.2,173.89,173.88,38.47751416]
[1729745545054,0.1,173.89,173.88,38.47751416]
[1729745546850,0.2,173.89,173.88,38.47751416]
[1729745547957,0.1,173.89,173.88,38.47751416]
[1729745549127,0.2,173.89,173.88,38.47751416]
[1729745549726,0.1,173.9,173.88,38.47751416]
[1729745549934,0.1,173.9,173.89,38.47751416]
[1729745551333,0.1,173.91,173.89,38.47751416]
[1729745551532,0.1,173.91,173.9,18.47751416]
[1729745551743,0.1,173.91,173.9,38.47751416]
[1729745552550,0.1,173.92,173.9,38.47751416]
[1729745552754,22.4915,173.94,173.91,38.47751416]
[1729745552956,22.5915,173.94,173.93,38.47751416]
[1729745553254,0.2,173.94,173.93,38.47751416]
[1729745553636,0.1,173.94,173.93,38.47751416]
[1729745553957,0.2,173.94,173.93,38.47751416]
[1729745554247,0.2,173.94,173.86,24.027864]
[1729745554451,0.2,173.94,173.93,38.47751416]
[1729745554755,0.2,173.94,173.93,20.0]
[1729745558734,0.1,173.94,173.93,20.0]
[1729745558968,0.2,173.94,173.93,20.0]
[1729745559962,0.2,173.94,173.93,38.47751416]
[1729745562774,0.1,173.94,173.93,38.47751416]
[1729745563063,0.2,173.94,173.93,38.47751416]
[1729745567754,0.1,173.92,173.86,23.39931459]
[1729745567962,0.1,173.92,173.91,38.47751416]
[1729745572152,0.2,173.93,173.91,38.47751416]
[1729745572363,0.2,173.93,173.92,38.47751416]
[1729745573564,0.2,173.94,173.92,38.47751416]
[1729745573765,0.1,173.93,173.86,23.39931459]
[1729745573989,0.2,173.94,173.93,20.0]
[1729745574166,0.2,173.94,173.93,38.47751416]
[1729745578866,0.2,173.94,173.86,3.39931459]
[1729745578867,0.1,173.93,173.86,23.39931459]
[1729745579066,0.2,173.93,173.92,38.47751416]
[1729745584655,0.1,173.93,173.92,38.47751416]
[1729745584852,0.2,173.93,173.92,38.47751416]
[1729745586347,0.1,173.93,173.92,38.47751416]
[1729745586748,0.2,173.94,173.93,20.0]
[1729745587053,0.1,173.94,173.93,20.0]
[1729745587261,0.2,173.94,173.93,20.0]
[1729745588575,0.1,173.94,173.93,20.0]
[1729745588776,0.2,173.94,173.93,20.0]
[1729745589268,0.2,173.94,173.93,38.47751416]
[1729745590373,0.1,173.94,173.93,38.47751416]
[1729745590674,0.2,173.94,173.93,38.47751416]
[1729745591475,0.1,173.9,173.86,3.14833459]
[1729745591766,0.1,173.9,173.89,20.0]
[1729745592150,0.1,173.9,173.89,38.47751416]
[1729745592352,0.2,173.87,173.79,0.99996538]
[1729745592665,0.2,173.87,173.85,18.47751416]
[1729745593580,0.2,173.87,173.86,20.0]
[1729745594572,0.1,173.87,173.86,20.0]
[1729745594766,0.1,173.87,173.86,38.47751416]
[1729745595171,0.2,173.87,173.86,38.47751416]
[1729745596984,0.1,173.87,173.86,38.47751416]
[1729745597176,0.2,173.87,173.86,38.47751416]
[1729745597378,0.1,173.82,173.8,6.00301026]
[1729745597684,0.2,173.82,173.8,18.47751416]
[1729745598774,0.2,173.82,173.81,20.0]
[1729745599183,0.1,173.82,173.81,20.0]
[1729745599381,0.2,173.82,173.81,20.0]
[1729745599784,0.2,173.82,173.8,20.0]
[1729745600795,0.1,173.82,173.8,20.0]
[1729745601090,0.2,173.82,173.8,20.0]